Cogmind - Beta 16.1 @@@ ROGUE MODE // 2026.04.13 @ 11:38:30 Player: Rainbow Dash Result: Destroyed by 5E-MJM(R) with Subdweller Machine Gun Performance ------------- Evolutions (0) 0 Regions Visited (2) 400 Robots Destroyed (27) 135 Value Destroyed (658) 658 Prototype IDs (3) 60 Alien Tech Used (0) 0 Bonus (0) 0 TOTAL SCORE: 1253 Bonus ------- None Cogmind --------- Core Integrity 0/250 Matter 243/300 Energy 200/200 System Corruption 1% Temperature Cool (0) Movement Walking (190) Ox1 Location -10/Subcaves Parts ------- > --- POWER (1) -------- Subdweller Power Source > --- PROPULSION (2) --- Aluminum Leg Aluminum Leg > --- UTILITY (2) ------ Large Storage Unit Medium Armor Plating > --- WEAPON (2) ------- Battle Rifle Battle Cannon > --- INVENTORY (15) --- Ion Engine Light Ion Engine Subdweller Monowheel Heat Sink Subdweller Optics Light Armor Plating Scrap Shield Subdweller Laser Light Cannon Battle Cannon Heavy Hammer Peak State ------------ > --- POWER ------------ Light Nuclear Core > --- PROPULSION ------- Aluminum Leg Aluminum Leg > --- UTILITY ---------- Medium Storage Unit Medium Armor Plating > --- WEAPON ----------- Improved Medium Laser Improved Medium Laser > --- INVENTORY -------- Ion Engine Light Ion Engine Heat Sink Large Storage Unit Seismic Detector Medium Armor Plating Medium Armor Plating Improved Medium Laser Heavy Hammer [Rating: 15] Favorites ----------- Power Ion Engine Engine Ion Engine Power Core Light Nuclear Core Propulsion Aluminum Leg Leg Aluminum Leg Utility Medium Storage Unit Device Seismic Detector Storage Medium Storage Unit Protection Medium Armor Plating Weapon Improved Medium Laser Energy Gun Improved Medium Laser Ballistic Gun Battle Rifle Ballistic Cannon Light Cannon Impact Weapon Heavy Hammer Build | -11 -10 -10 ------- Run | Yrd Mat Sub Slots Evolved . | . . . Power . | . . . Propulsion . | . . . Utility . | . . . Weapon . | . . . Parts Attached 31 | 8 16 7 Power 5 | 2 2 1 Engine 4 | 2 1 1 Core 1 | . 1 . Reactor . | . . . Propulsion 7 | 2 4 1 Treads . | . . . Leg 7 | 2 4 1 Wheel . | . . . Hover . | . . . Flight . | . . . Utility 9 | 2 5 2 Device 2 | 1 1 . Storage 3 | 1 1 1 Processor . | . . . Hackware . | . . . Protection 4 | . 3 1 Artifact . | . . . Weapon 10 | 2 5 3 Energy Gun 5 | 1 4 . Energy Cannon . | . . . Ballistic Gun 2 | 1 . 1 Ballistic Cannon 2 | . 1 1 Launcher . | . . . Special Weapon . | . . . Impact Weapon 1 | . . 1 Slashing Weapon . | . . . Piercing Weapon . | . . . Special Melee Weapon . | . . . Unidentified Prototypes 1 | . 1 . Parts Lost 5 | . 2 3 Power 1 | . 1 . Propulsion 1 | . . 1 Utility 1 | . . 1 Weapon 2 | . 1 1 Highest Loss Streak 3 | . 1 3 To Critical Strikes . | . . . Average Backups 10 | 1 8 12 Power 1 | . 1 1 Propulsion . | . . 1 Utility 4 | . 4 4 Weapon 3 | . 2 4 Tool/Special . | . . . Unused Backups 7 | . . 7 Power . | . . . Propulsion 1 | . . 1 Utility 2 | . . 2 Weapon 4 | . . 4 Tool/Special . | . . . Average Slot Usage (%) 99 | . 99 99 Engine 13 | . 11 14 Leg 27 | . 28 27 Device 7 | . 5 9 Storage 14 | . 14 14 Protection 5 | . 8 4 Energy Gun 14 | . 16 12 Ballistic Gun 6 | . 5 6 Ballistic Cannon 3 | . 5 2 Impact Weapon 3 | . . 5 Peak Build Rating 15 | 7 15 14 Average Rating 11 | 5 10 12 On Entrance 5 | . 7 10 Avg Prop Armor Cover (%) . | . . . Naked Turns . | . . . Heaviest Build 38 | 14 28 38 Greatest Support 20 | 20 20 20 Greatest Overweight (x) 1 | 1 1 1 Average Overweight (x) . | . . 1 Largest Inventory Capacity 15 | 8 10 15 Average Capacity 11 | 7 9 12 Most Carried 15 | 2 10 15 Average Carried 10 | 1 8 12 Final Capacity 15 | 8 10 15 Final Carried 12 | 2 9 12 Class Distribution -------------------- 100% | Mutant Dominant Class ---------------- Mutant | -10/Materials Mutant | -10/Subcaves Resources | -11 -10 -10 ----------- Run | Yrd Mat Sub Matter Collected 868 | 294 245 329 Remotely . | . . . Salvage Created 876 | 189 374 313 Parts 56 | 14 26 16 Haulers Intercepted 1 | . 1 . Recyclers Shooed 1 | . 1 . Parts Field Recycled . | . . . Retrieved Matter . | . . . Parts Self-Destructed 12 | . . 12 Prevented . | . . . Parts Restored . | . . . Kills | -11 -10 -10 ------- Run | Yrd Mat Sub Combat Hostiles Destroyed 20 | . 12 8 Guns 14 | . 10 4 Cannons 6 | . 2 4 Classes Destroyed 7 | 2 3 2 Tunneler 5 | 5 . . Hauler 1 | . 1 . Recycler 1 | 1 . . Swarmer 6 | . 6 . Grunt 6 | . 6 . Sentry 1 | . . 1 Subdweller 7 | . . 7 Best Kill Streak 6 | 6 3 2 Combat Bots Only 3 | . 3 2 Max Kills in Single Turn 2 | 2 1 1 Gunslinging . | . . . Exploded . | . . . Melee . | . . . Uniques/NPCs Destroyed . | . . . Combat | -11 -10 -10 -------- Run | Yrd Mat Sub Hostile Shots Fired 128 | . 86 42 Missed 34 | . 18 16 Hits 94 | . 68 26 Projectile 94 | . 68 26 Critical Strikes 2 | . 1 1 Damage Taken 1451 | . 776 675 Core 254 | . 124 130 Absorbed by Shields . | . . . Core Remaining (%) 100 | 100 . . Volleys Fired 102 | 14 55 33 Largest 2 | 2 2 2 Hottest 89 | 70 86 89 Shots Fired 179 | 28 84 67 Gun 156 | 28 77 51 Cannon 23 | . 7 16 Launcher . | . . . Special . | . . . Kinetic 102 | 14 40 48 Thermal 77 | 14 44 19 Explosive . | . . . Electromagnetic . | . . . Robot Hit Streak 18 | 8 11 18 Robot Miss Streak 3 | 2 3 2 Penetration Max . | . . . Secondary Targets 1 | . 1 . Max Gunslinging Chain 1 | . 1 . Shots Hit Robots 131 | 17 58 56 Core Hits 49 | 10 22 17 Critical Kills 1 | . 1 . Critical Parts Destroyed . | . . . Critical Strikes 6 | 2 3 1 Burn 5 | 2 2 1 Destroy 1 | . 1 . Melee Attacks 27 | . . 27 Impact 27 | . . 27 Slashing . | . . . Piercing . | . . . Sneak Attacks . | . . . Combat Hostiles . | . . . Follow-up Attacks . | . . . Damage Inflicted 1829 | 194 718 917 Guns 1438 | 194 650 594 Cannons 378 | . 55 323 Explosions . | . . . Melee . | . . . Ramming 13 | . 13 . Kinetic 1020 | 56 265 699 Thermal 796 | 138 440 218 Explosive . | . . . Electromagnetic . | . . . Impact . | . . . Slashing . | . . . Piercing . | . . . Highest Corruption 1 | . 1 1 Average Corruption 1 | . 1 1 Corruption Purged . | . . . Corruption Blocked . | . . . Effects 29 | . 8 21 Message Errors 9 | . 3 6 Matter Fused 4 | . . 4 Heat Flow Errors 5 | . . 5 Energy Discharges 2 | . 1 1 Data Loss (minor) 6 | . 3 3 Data Loss (major) 1 | . . 1 Misfires 1 | . . 1 Weapon Failures 1 | . 1 . Overload Shots . | . . . Overflow Damage . | . . . Projectiles . | . . . Explosions . | . . . Melee . | . . . Knockbacks 2 | . . 2 Impact . | . . . Kinetic 2 | . . 2 Secondary . | . . . Self-Inflicted Damage . | . . . Shots . | . . . Rammed . | . . . Targets Rammed 4 | . 4 . Kicked 4 | . 4 . Crushed . | . . . Highest Temperature 307 | 120 307 249 Average Temperature 86 | 46 108 45 Received Heat Transfer 345 | . 294 51 Effects 2 | . 2 . Interference 2 | . 2 . Siege Activations . | . . . Martial Activations . | . . . Shielding Activations . | . . . Robots Disrupted . | . . . Combat Hostiles . | . . . Robots Corrupted . | . . . Combat Hostiles . | . . . Parts Fried . | . . . Impact Corruptions . | . . . Robots Melted . | . . . Combat Hostiles . | . . . Parts Melted 3 | 2 1 . Heat Transferred 2294 | 555 1184 555 Parts Sabotaged . | . . . Parts Stolen . | . . . Parts Stripped . | . . . Power Chain Reactions . | . . . Alert | -11 -10 -10 ------- Run | Yrd Mat Sub Maximum Alert Level . | . . . Low Security (%) 100 | 100 100 . Level 1 . | . . . Level 2 . | . . . Level 3 . | . . . Level 4 . | . . . Level 5 . | . . . High Security . | . . . Max Security . | . . . Peak Influence 100 | 15 100 . Initial . | . . . Average 20 | 3 22 . Influence Increases 426 | 30 376 20 Destroy 0b10 Robot/C 260 | . 240 20 Destroy 0b10 Robot/NC 35 | 30 5 . Destroy Leader 52 | . 52 . Successful Hack 49 | . 49 . Partial Spotted 15 | . 15 . Lose Combat Pursuer 15 | . 15 . Influence Decreases 426 | 30 376 20 Time Decay 385 | 30 335 20 Lost Part 20 | . 20 . Purge Threat 21 | . 21 . Squads Dispatched 1 | . 1 . Investigation . | . . . Extermination . | . . . Reinforcement 1 | . 1 . Assault . | . . . Garrison . | . . . Intercept . | . . . Searches Triggered . | . . . Construction Impeded . | . . . Haulers Reinforced . | . . . Active Scanning Responses . | . . . Cargo Convoy Interrupts . | . . . Stealth | -11 -10 -10 --------- Run | Yrd Mat Sub Distress Signals 5 | . 5 . Communications Jammed . | . . . Distress Signals . | . . . Times Spotted 34 | . 24 10 Peak Tracking Total 5 | . 5 2 Tactical Retreats 2 | . 1 1 Traps | -11 -10 -10 ------- Run | Yrd Mat Sub Traps Triggered 5 | . 2 3 Indirectly . | . . . Trap Hack Attempts . | . . . Triggered . | . . . Disarmed . | . . . Reprogrammed . | . . . Reused . | . . . Traps Extracted . | . . . Installed . | . . . Triggered . | . . . Machines | -11 -10 -10 ---------- Run | Yrd Mat Sub Machines Disabled . | . . . Max in Single Turn . | . . . Machines Repaired . | . . . Machines Dismantled . | . . . Machines Sabotaged . | . . . Overloaded Fab Kills . | . . . Hacking | -11 -10 -10 --------- Run | Yrd Mat Sub Machines Accessed 8 | . 8 . Terminals 7 | . 7 . Fabricators . | . . . Repair Stations . | . . . Recycling Units 1 | . 1 . Scanalyzers . | . . . Garrison Access . | . . . Total Hacks 35 | . 35 . Successful 20 | . 20 . Failed 14 | . 14 . Catastrophic 3 | . 3 . Database Lockouts 1 | . 1 . Manual 24 | . 24 . Terminals 32 | . 32 . Fabricators . | . . . Repair Stations . | . . . Recycling Units 3 | . 3 . Scanalyzers . | . . . Garrison Access . | . . . Terminal Hacks 8 | . 8 . Part Schematic 1 | . 1 . Prototype ID Bank 1 | . 1 . Alert Level 1 | . 1 . Unreport Threat 1 | . 1 . Locate Traps 2 | . 2 . Registered Prototypes 1 | . 1 . Zone Layout 1 | . 1 . Fabricator Hacks . | . . . Repair Station Hacks . | . . . Recycling Unit Hacks 1 | . 1 . Retrieve Components 1 | . 1 . Scanalyzer . | . . . Garrison Access Hacks . | . . . Unauthorized Hacks 11 | . 11 . Terminals 11 | . 11 . Track 2 | . 2 . Botnet 3 | . 3 . Operators 1 | . 1 . Skim 5 | . 5 . Fabricators . | . . . Repair Stations . | . . . Recycling Units . | . . . Scanalyzers . | . . . Garrison Access . | . . . Data Cores Recovered . | . . . Used . | . . . Hacking Detections 7 | . 7 . Full Trace Events . | . . . Feedback Events . | . . . Feedback Blocked . | . . . Robot Schematics Acquired . | . . . Robots Built . | . . . Authchips . | . . . Time . | . . . Total Robot Build Rating . | . . . Part Schematics Acquired 1 | . 1 . Parts Built . | . . . Authchips . | . . . Time . | . . . Total Part Build Rating . | . . . Part Studies Acquired . | . . . Parts Repaired . | . . . Time . | . . . Parts Recycled . | . . . Recycled Matter . | . . . Retrieved Matter . | . . . Retrieved Components . | . . . Parts Scanalyzed . | . . . Part Schematics Acquired . | . . . Parts Damaged . | . . . Bothacking | -11 -10 -10 ------------ Run | Yrd Mat Sub Used RIF Installer . | . . . Robots Hacked . | . . . Non-combat . | . . . Combat . | . . . Robot Hacks Applied . | . . . Relay Couplers Released . | . . . Fabnet Peak Effective % . | . . . Robots Rewired . | . . . Allies Hacked . | . . . Hacks Repelled . | . . . Allies | -11 -10 -10 -------- Run | Yrd Mat Sub Total Allies . | . . . Largest Group . | . . . Highest-Rated Group . | . . . Highest-Rated Ally . | . . . Total Orders . | . . . Ally Attacks . | . . . Total Damage . | . . . Kills . | . . . Allies Corrupted . | . . . Allies Melted . | . . . Intel | -11 -10 -10 ------- Run | Yrd Mat Sub Active Infowar (turns) 1573 | 26 234 1313 Seismic 1573 | 26 234 1313 Robot Analysis Total . | . . . Derelict Logs Recovered 1 | . . 1 Drone Launches . | . . . Drone Recoveries . | . . . Exploration | -11 -10 -10 ------------- Run | Yrd Mat Sub Turns Passed 3311 | 123 1315 1873 Spaces Moved 1629 | 62 703 864 Core 8 | 8 . . Treads . | . . . Legs 1621 | 54 703 864 Wheels . | . . . Hover . | . . . Flight . | . . . Fastest Speed 50 | 50 120 190 Average Speed 173 | 113 157 190 Slowest Speed 190 | 120 190 190 Overloaded Moves . | . . . Propulsion Burnouts . | . . . Robots Hopped . | . . . Potential Cave-ins . | . . . Cave-ins Triggered . | . . . Exploration Rate (%) 50 | 4 95 53 Regions Visited 2 Branch Regions 1 Pre-discovered Areas 3 | . 2 1 Known Exits Taken 1 | . 1 . Unknown Exits Taken 1 | 1 . . Scrap Searched 5 | . . 5 Spaces Dug 10 | . . 10 Terrain Destroyed 10 | . . 10 Melee 10 | . . 10 Projectile . | . . . AOE . | . . . Terrain Rammed . | . . . Walls Destroyed . | . . . Machines Disabled . | . . . Actions | -11 -10 -10 --------- Run | Yrd Mat Sub Total 1885 | 85 828 972 Wait 42 | 1 24 17 Move 1627 | 61 702 864 Hop . | . . . Pick Up 20 | 1 12 7 Fast Attach 13 | 7 4 2 Attach 7 | . 3 4 Detach 2 | . 1 1 Swap 27 | 1 13 13 Drop 14 | . 10 4 Fire 102 | 14 55 33 Melee 27 | . . 27 Ram . | . . . Kick 4 | . 4 . Crush . | . . . Escape Stasis . | . . . Rewire . | . . . Trap . | . . . Miscellaneous . | . . . Route ------- -11/Scrapyard -10/Materials (discovered 6 exits: *Mat x3 / [*Min x2] / *Sub) -10/Subcaves (discovered 3 exits: *Mat x2 / [*Scr]) History --------- Turn | Location | Event 7 | -11/Scrapyard | Discovered new exit (range 16) 124 | -11/Scrapyard | Entered Materials 314 | -10/Materials | Build established: Mutant 371 | -10/Materials | Discovered new exit (range 6) 375 | -10/Materials | Discovered new exit (range 16) 579 | -10/Materials | Discovered new exit (range 12) 979 | -10/Materials | Central database locked down 1072 | -10/Materials | Discovered new exit (range 12) 1106 | -10/Materials | Identified exit to Materials 1169 | -10/Materials | Learned location of Recycling (-8) 1171 | -10/Materials | Learned 2 Mines zone layouts 1172 | -10/Materials | Identified exit to Subcaves 1172 | -10/Materials | Learned location of 1 exit from Materials 1173 | -10/Materials | Loaded intel: 17 trap records 1176 | -10/Materials | Learned 2 Storage zone layouts 1190 | -10/Materials | Learned location of 1 exit from Recycling 1213 | -10/Materials | Learned location of Subcaves (-10) 1439 | -10/Materials | Entered Subcaves 1440 | -10/Subcaves | Approached by a straggling Scientist 1440 | -10/Subcaves | Identified exit to Materials 1530 | -10/Subcaves | Shifting Twisted Machinery released Riot Gun 1541 | -10/Subcaves | Shifting Twisted Machinery released Battle Rifle 1842 | -10/Subcaves | Disturbed a concealed Subdweller 1892 | -10/Subcaves | Core integrity fell below 50% 2159 | -10/Subcaves | Learned location of Mines (-10) 3155 | -10/Subcaves | Ambushed by Subdweller buried in earth 3155 | -10/Subcaves | Ambushed by Subdweller buried in earth 3199 | -10/Subcaves | Shifting Twisted Machinery released Battle Cannon 3200 | -10/Subcaves | Lost 3 parts (1n1u1w) 3202 | -10/Subcaves | Shifting Twisted Machinery released Sub. Machine Gun 3296 | -10/Subcaves | Scientist uncovered a shortcut to Scraptown 3299 | -10/Subcaves | Core integrity fell below 20% 3312 | -10/Subcaves | Destroyed by 5E-MJM(R) with Subdweller Machine Gun Last Messages --------------- 03156_ 8C-5E9(R): "ARGHSUB!" 03158_ The unstable cave ceiling collapses. 03169_ Aluminum Leg destroyed. 00-HN8(c): "I think it's somewhere west of here" 03173_ G0-1G3(R) destroyed. 03176_ 8C-5E9(R) destroyed. 03179_ Acquired 17 matter. 03181_ Acquired 39 matter. Battle Cannon falls loose from the Twisted Machinery. 03201_ System corrupted: Component data lost. Sub. Machine Gun falls loose from the Twisted Machinery. 00-HN8(c): "I think it's somewhere west of here" 03239_ System corrupted: Heat flow error (+129). 03266_ System corrupted: Heat flow error (+149). 03269_ BF-Y3L(R) destroyed. 00-HN8(c): "We're getting close, I can feel it." 03286_ Acquired 26 matter. 03288_ Acquired 6 matter. 03296_ 00-HN8(c): "Hah, right again, there it is!" 03301_ 5E-MJM(R) knocked back. Map ----- +----------------------------------------------------+ | ?????????????????????????????????????????????????? | | ?????????????????????????????????????????????????? | | ?????????????????????????????????????????????????? | | ?????????????????????????????????????????????????? | | ?????????????????????????????????????????????????? | | ?????????????????????????????????????????????????? | | ?????????????????????????????????????????????????? | | ?????????????????????????????????????????????????? | | ?????????????????????????????????????????????????? | | ?????????????????????????????????????????????????? | | ?????????????????????????????????????????????????? | | ?????????????????????????????????????????????????? | | ?????????????????????????????????????????????????? | | ?????????????????????????????????????????????##??? | | ?????????????????????????????????????????????# #? | | ?????????????????????????????????????????????# # | | ????????????????????????????????????#????????# # | | ???????????????????????####????????# ????????# # | | ?????????? ?????????????%%####????# ????????## | | ?????????? ????????????>R% # ### ???????##" | | ?????????% ????###??? ? ??????##[" | | ????????? ??## #??# %??? #??????# " | | ??????????? ## ### #???? #??##### " # | | ????????????# % # ##???? #??# ### # | | ????????????# % ## ###?## #??# #?# # | | ???????????## #&@ ## ### #### #??#"" | | ???????????# # & "" ##?#"]" | | ????????????# ## #### """ ### | | ?????????????# ### % #####??## #### ## | | ????????????????????### #??????## ##??# ### | | ??????????????????????## ##???????###???### ##?? | | ????????????????????????##????????????????#####??? | | ?????????????????????????????????????????????????? | | ?????????????????????????????????????????????????? | | ?????????????????????????????????????????????????? | | ?????????????????????????????????????????????????? | | ?????????????????????????????????????????????????? | | ?????????????????????????????????????????????????? | | ?????????????????????????????????????????????????? | | ?????????????????????????????????????????????????? | | ?????????????????????????????????????????????????? | | ?????????????????????????????????????????????????? | | ?????????????????????????????????????????????????? | | ?????????????????????????????????????????????????? | | ?????????????????????????????????????????????????? | | ?????????????????????????????????????????????????? | | | | | | | | | +----------------------------------------------------+ Best States ------------- Heat Dissipation 35 Energy Generation 14 Energy Capacity 250 Matter Stores 300 Matter Capacity 300 Sight Range 16 Terrain Scan Density 10 Armor Coverage 225 Evasion (%) 55 Item Schematics ----------------- Hcp. Storage Unit | -10/Materials | Hacked Robot Schematics ------------------ None Fabricated ------------ Nothing Repaired ---------- Nothing Studied --------- None Alien Tech Used ----------------- None Achievements -------------- None Challenges ------------ None Game ------ Seed StructuralLegRailcannon Manual? 0 Play Time 00:25:45 Cumulative 188.7 hours Start 2026.04.13 @ 11:14:41 End 2026.04.13 @ 11:38:30 Sessions 1 Manual Loads 0 Difficulty Rogue Special Mode None Game No. 157 Rogue 112 Adventurer 45 Explorer 0 Win Type - Total 3 Types 2/0/0/1/0/0/0/0/0/0 Lore% 77 Gallery% 63 Achievement% 45 Wizard Run 0 Options --------- Layout 0 ASCII 1 Keyboard 1 Movement Numpad Keybinds 0 Fullscreen 1 Font 24/X11 Map View 76x50 Zoom Use 0% Tactical HUD 1 Map Filters NONE Filters NONE Steam 1 RUN: 78b41471-fb2c-46de-9a96-1eb45e4e9c17